[Event "*** Titled Tuesday Blitz"]
[Site "Chess.com"]
[Date "2018.12.04"]
[Round "5"]
[White "Marcus_Harvey"]
[Black "SanchezKelvin"]
[Result "1-0"]
[WhiteElo "2678"]
[BlackElo "2484"]
[TimeControl "180+2"]
[EndTime "14:07:46 PST"]
[Termination "Marcus_Harvey won by resignation"]

1. d4 {[%clk 0:03:01.9]} 1... Nf6 {[%clk 0:03:00.2]} 2. Nf3 {[%clk 0:03:03.2]}
2... g6 {[%clk 0:03:00.8]} 3. Bf4 {[%clk 0:03:03.5]} 3... Bg7 {[%clk 0:03:01.4]}
4. e3 {[%clk 0:03:05]} 4... d5 {[%clk 0:03:02.2]} 5. c4 {[%clk 0:03:06.1]} 5...
O-O {[%clk 0:03:01.5]} 6. Nc3 {[%clk 0:03:07]} 6... c6 {[%clk 0:03:02.1]} 7. h3
{[%clk 0:03:07]} 7... Qb6 {[%clk 0:02:58.3]} 8. Qb3 {[%clk 0:03:07.6]} 8... Nbd7
{[%clk 0:02:51.6]} 9. c5 {[%clk 0:03:08.1]} 9... Qxb3 {[%clk 0:02:50.9]} 10.
axb3 {[%clk 0:03:10]} 10... Ne4 {[%clk 0:02:47.4]} 11. b4 {[%clk 0:03:09.6]}
11... Nxc3 {[%clk 0:02:45.9]} 12. bxc3 {[%clk 0:03:10]} 12... f5 {[%clk
0:02:45.3]} 13. g3 {[%clk 0:03:00.6]} 13... h6 {[%clk 0:02:44.6]} 14. h4 {[%clk
0:02:58.8]} 14... Re8 {[%clk 0:02:42.7]} 15. Ne5 {[%clk 0:02:59.6]} 15... Nf8
{[%clk 0:02:27.8]} 16. Nd3 {[%clk 0:02:53.8]} 16... a6 {[%clk 0:02:20.2]} 17.
Be5 {[%clk 0:02:52.3]} 17... Bf6 {[%clk 0:02:11]} 18. Nf4 {[%clk 0:02:40.8]}
18... Kf7 {[%clk 0:02:05.5]} 19. b5 {[%clk 0:02:38.7]} 19... g5 {[%clk
0:01:45.3]} 20. hxg5 {[%clk 0:02:38.6]} 20... hxg5 {[%clk 0:01:46]} 21. Bxf6
{[%clk 0:02:21.8]} 21... exf6 {[%clk 0:01:10.2]} 22. Ng2 {[%clk 0:02:22.5]}
22... cxb5 {[%clk 0:01:07.8]} 23. Bxb5 {[%clk 0:02:22.9]} 23... Bd7 {[%clk
0:01:08.4]} 24. Bxd7 {[%clk 0:02:22.4]} 24... Nxd7 {[%clk 0:01:07.7]} 25. Rh7+
{[%clk 0:02:23.6]} 25... Ke6 {[%clk 0:01:06.4]} 26. Rb1 {[%clk 0:02:24.8]} 26...
Rab8 {[%clk 0:00:40.4]} 27. Kd2 {[%clk 0:02:21.2]} 27... Re7 {[%clk 0:00:37.3]}
28. Rxe7+ {[%clk 0:02:16.1]} 28... Kxe7 {[%clk 0:00:37.6]} 29. Ne1 {[%clk
0:02:18]} 29... b6 {[%clk 0:00:38.3]} 30. Nd3 {[%clk 0:02:15.3]} 30... bxc5
{[%clk 0:00:31.1]} 31. Rxb8 {[%clk 0:02:14]} 31... Nxb8 {[%clk 0:00:32.7]} 32.
Nxc5 {[%clk 0:02:15.6]} 32... Kd6 {[%clk 0:00:32.6]} 33. Kc2 {[%clk 0:02:09.5]}
33... Kc6 {[%clk 0:00:33.2]} 34. Kb3 {[%clk 0:01:58.5]} 34... Kb5 {[%clk
0:00:33.6]} 35. Ne6 {[%clk 0:01:59.7]} 35... a5 {[%clk 0:00:28.3]} 36. Nc7+
{[%clk 0:02:00.4]} 36... Kc6 {[%clk 0:00:27.4]} 37. Ne8 {[%clk 0:02:01.7]} 37...
Nd7 {[%clk 0:00:28.4]} 38. Ka4 {[%clk 0:01:59.4]} 38... Kb6 {[%clk 0:00:29.4]}
39. Ng7 {[%clk 0:01:58.5]} 39... f4 {[%clk 0:00:25.4]} 40. exf4 {[%clk
0:01:58.8]} 40... gxf4 {[%clk 0:00:26.5]} 41. gxf4 {[%clk 0:01:57.1]} 41... Ka6
{[%clk 0:00:27.2]} 42. Ne8 {[%clk 0:01:51.9]} 42... Nb6+ {[%clk 0:00:27.6]} 43.
Kb3 {[%clk 0:01:53]} 43... f5 {[%clk 0:00:25.6]} 44. Nd6 {[%clk 0:01:52.5]}
44... Nd7 {[%clk 0:00:13]} 45. Nxf5 {[%clk 0:01:52.7]} 45... Kb5 {[%clk
0:00:14.2]} 46. Nd6+ {[%clk 0:01:52]} 46... Kc6 {[%clk 0:00:14.7]} 47. Nf5
{[%clk 0:01:49.6]} 47... Kb5 {[%clk 0:00:15.5]} 48. Ne3 {[%clk 0:01:50.9]} 48...
Nb6 {[%clk 0:00:16.1]} 49. f5 {[%clk 0:01:48.7]} 49... Kc6 {[%clk 0:00:16.7]}
50. c4 {[%clk 0:01:39.7]} 50... dxc4+ {[%clk 0:00:15.3]} 51. Nxc4 {[%clk
0:01:40.3]} 51... a4+ {[%clk 0:00:15.9]} 52. Kb4 {[%clk 0:01:40.1]} 52... Nd5+
{[%clk 0:00:14.3]} 53. Kxa4 {[%clk 0:01:41.4]} 53... Nc3+ {[%clk 0:00:13.3]} 54.
Kb3 {[%clk 0:01:38.1]} 54... Ne4 {[%clk 0:00:15]} 55. f3 {[%clk 0:01:34.2]}
55... Nf6 {[%clk 0:00:14.5]} 56. Ne3 {[%clk 0:01:33.5]} 56... Kd6 {[%clk
0:00:14.8]} 57. Kc4 {[%clk 0:01:34.8]} 57... Nd7 {[%clk 0:00:14.9]} 58. Kd3
{[%clk 0:01:36]} 58... Nf6 {[%clk 0:00:13.8]} 59. Ng4 {[%clk 0:01:36.9]} 59...
Nh5 {[%clk 0:00:12.1]} 60. Ke4 {[%clk 0:01:37.6]} 60... Ng3+ {[%clk 0:00:12.6]}
61. Kf4 {[%clk 0:01:39.1]} 61... Ne2+ {[%clk 0:00:13.1]} 62. Ke3 {[%clk
0:01:39.6]} 62... Ng3 {[%clk 0:00:13.4]} 63. f6 {[%clk 0:01:41.1]} 63... Ke6
{[%clk 0:00:14.3]} 64. d5+ {[%clk 0:01:35.3]} 64... Kf7 {[%clk 0:00:12.2]} 65.
Kf4 {[%clk 0:01:36.4]} 65... Ne2+ {[%clk 0:00:12.3]} 66. Ke5 {[%clk 0:01:37.7]}
66... Ng3 {[%clk 0:00:11.4]} 67. Nh6+ {[%clk 0:01:36.9]} 67... Kg6 {[%clk
0:00:10.9]} 1-0

[Event "*** Titled Tuesday Blitz"]
[Site "Chess.com"]
[Date "2018.12.04"]
[Round "5"]
[White "LuisFSiles"]
[Black "artichaud"]
[Result "0-1"]
[WhiteElo "2220"]
[BlackElo "2140"]
[TimeControl "180+2"]
[EndTime "14:07:53 PST"]
[Termination "artichaud won on time"]

1. e4 {[%clk 0:03:00.8]} 1... e6 {[%clk 0:02:54.2]} 2. d4 {[%clk 0:03:00.3]}
2... d5 {[%clk 0:02:56.1]} 3. e5 {[%clk 0:03:01.2]} 3... c5 {[%clk 0:02:56.6]}
4. c3 {[%clk 0:03:02.6]} 4... Bd7 {[%clk 0:02:58.5]} 5. Nf3 {[%clk 0:03:02.3]}
5... Nc6 {[%clk 0:02:58.7]} 6. a3 {[%clk 0:03:01.8]} 6... c4 {[%clk 0:02:54.5]}
7. Nbd2 {[%clk 0:03:01.1]} 7... Na5 {[%clk 0:02:49]} 8. h4 {[%clk 0:02:59.5]}
8... Bc6 {[%clk 0:02:42.5]} 9. g3 {[%clk 0:02:40.1]} 9... Qd7 {[%clk 0:02:39.4]}
10. a4 {[%clk 0:02:33.6]} 10... Ne7 {[%clk 0:02:38.5]} 11. Bh3 {[%clk
0:02:32.2]} 11... Nc8 {[%clk 0:02:38.6]} 12. O-O {[%clk 0:02:32.6]} 12... Nb6
{[%clk 0:02:39.7]} 13. h5 {[%clk 0:02:14.4]} 13... h6 {[%clk 0:02:36.7]} 14. Nh4
{[%clk 0:02:14.2]} 14... Bxa4 {[%clk 0:02:35.9]} 15. Qe2 {[%clk 0:02:11.8]}
15... Nb3 {[%clk 0:02:28.1]} 16. Nxb3 {[%clk 0:02:11.9]} 16... Bxb3 {[%clk
0:02:28.7]} 17. f4 {[%clk 0:02:12.5]} 17... Be7 {[%clk 0:02:17.9]} 18. f5 {[%clk
0:01:57.7]} 18... Bxh4 {[%clk 0:02:04.2]} 19. fxe6 {[%clk 0:01:52.6]} 19... fxe6
{[%clk 0:02:01.4]} 20. gxh4 {[%clk 0:01:53.8]} 20... O-O-O {[%clk 0:01:55]} 21.
Qg4 {[%clk 0:01:24.1]} 21... Rhe8 {[%clk 0:01:41.9]} 22. Qg6 {[%clk 0:01:12.4]}
22... Re7 {[%clk 0:01:37.4]} 23. Rxa7 {[%clk 0:01:11.4]} 23... Kb8 {[%clk
0:01:35.5]} 24. Ra1 {[%clk 0:01:08.3]} 24... Na4 {[%clk 0:01:31.9]} 25. Rf2
{[%clk 0:01:05.6]} 25... b5 {[%clk 0:01:32.2]} 26. Be3 {[%clk 0:01:05.9]} 26...
Kb7 {[%clk 0:01:32.4]} 27. Raf1 {[%clk 0:01:06.5]} 27... b4 {[%clk 0:01:20.4]}
28. cxb4 {[%clk 0:01:01.4]} 28... c3 {[%clk 0:01:11.3]} 29. bxc3 {[%clk
0:00:59.1]} 29... Nxc3 {[%clk 0:01:11.9]} 30. Rf7 {[%clk 0:00:56.8]} 30... Rde8
{[%clk 0:01:05.9]} 31. Qxg7 {[%clk 0:00:53]} 31... Bc4 {[%clk 0:01:06.2]} 32.
R1f3 {[%clk 0:00:22.8]} 32... Be2 {[%clk 0:01:03.7]} 33. Rf2 {[%clk 0:00:22.1]}
33... Bxh5 {[%clk 0:01:01.3]} 34. Rxe7 {[%clk 0:00:20.3]} 34... Rxe7 {[%clk
0:01:02.1]} 35. Qxh6 {[%clk 0:00:21.8]} 35... Be8 {[%clk 0:00:53.9]} 36. Bg5
{[%clk 0:00:20.7]} 36... Ne4 {[%clk 0:00:33.8]} 37. Bxe7 {[%clk 0:00:16.1]}
37... Nxf2 {[%clk 0:00:33.2]} 38. Kxf2 {[%clk 0:00:17.8]} 38... Qxe7 {[%clk
0:00:31.2]} 39. Qxe6 {[%clk 0:00:19.3]} 39... Qxh4+ {[%clk 0:00:31.7]} 40. Kg2
{[%clk 0:00:13.3]} 40... Qe4+ {[%clk 0:00:31.3]} 41. Kg3 {[%clk 0:00:13.3]}
41... Qe3+ {[%clk 0:00:27.1]} 42. Kh4 {[%clk 0:00:14.1]} 42... Qf2+ {[%clk
0:00:24.7]} 43. Kg5 {[%clk 0:00:15]} 43... Qg3+ {[%clk 0:00:22.9]} 44. Kf6
{[%clk 0:00:15.8]} 44... Qh4+ {[%clk 0:00:21.7]} 45. Kg7 {[%clk 0:00:17.1]}
45... Qg5+ {[%clk 0:00:18.4]} 46. Kf8 {[%clk 0:00:18.4]} 46... Bc6 {[%clk
0:00:17.8]} 47. Qc8+ {[%clk 0:00:19.4]} 47... Kb6 {[%clk 0:00:18.3]} 48. Qb8+
{[%clk 0:00:20.9]} 48... Bb7 {[%clk 0:00:19.1]} 49. Qd6+ {[%clk 0:00:21.5]}
49... Ka7 {[%clk 0:00:20]} 50. Qc5+ {[%clk 0:00:22.4]} 50... Kb8 {[%clk
0:00:21.2]} 51. Qd6+ {[%clk 0:00:22.2]} 51... Ka7 {[%clk 0:00:22.5]} 52. Qf6
{[%clk 0:00:23.3]} 52... Qe3 {[%clk 0:00:21.9]} 53. Bf5 {[%clk 0:00:23.9]} 53...
Qxd4 {[%clk 0:00:22.6]} 54. e6 {[%clk 0:00:25.3]} 54... Qxf6+ {[%clk 0:00:23.4]}
0-1

[Event "*** Titled Tuesday Blitz"]
[Site "Chess.com"]
[Date "2018.12.04"]
[Round "5"]
[White "gmjlh"]
[Black "Hrant_ChessMood"]
[Result "1-0"]
[WhiteElo "2705"]
[BlackElo "2930"]
[TimeControl "180+2"]
[EndTime "14:08:02 PST"]
[Termination "gmjlh won on time"]

1. d4 {[%clk 0:03:01.9]} 1... Nf6 {[%clk 0:03:00.7]} 2. c4 {[%clk 0:03:02.9]}
2... g6 {[%clk 0:03:02.2]} 3. Nf3 {[%clk 0:03:03.2]} 3... Bg7 {[%clk 0:03:03.5]}
4. g3 {[%clk 0:03:04.3]} 4... b6 {[%clk 0:02:58.8]} 5. Bg2 {[%clk 0:03:04.9]}
5... Bb7 {[%clk 0:03:00.3]} 6. O-O {[%clk 0:03:05.9]} 6... O-O {[%clk
0:03:01.2]} 7. b3 {[%clk 0:03:06.4]} 7... a5 {[%clk 0:02:49.5]} 8. Bb2 {[%clk
0:03:05.6]} 8... Na6 {[%clk 0:02:50.6]} 9. Nc3 {[%clk 0:02:57.6]} 9... Ne4
{[%clk 0:02:51.2]} 10. Nxe4 {[%clk 0:02:47.1]} 10... Bxe4 {[%clk 0:02:50.8]} 11.
Ne5 {[%clk 0:02:40.1]} 11... Bxg2 {[%clk 0:02:47.6]} 12. Kxg2 {[%clk 0:02:42]}
12... d6 {[%clk 0:02:34]} 13. Nd3 {[%clk 0:02:33.3]} 13... c5 {[%clk 0:02:33.6]}
14. d5 {[%clk 0:02:31.2]} 14... Bxb2 {[%clk 0:02:24.8]} 15. Nxb2 {[%clk
0:02:33.1]} 15... Nc7 {[%clk 0:02:22.2]} 16. a4 {[%clk 0:02:31.7]} 16... e5
{[%clk 0:02:18.4]} 17. e4 {[%clk 0:02:28.4]} 17... f5 {[%clk 0:02:18.4]} 18.
exf5 {[%clk 0:02:29.8]} 18... Rxf5 {[%clk 0:02:09.9]} 19. Qe2 {[%clk 0:02:18.4]}
19... Qf6 {[%clk 0:02:07.2]} 20. Nd1 {[%clk 0:02:04.1]} 20... Rf8 {[%clk
0:02:00.2]} 21. Nc3 {[%clk 0:02:03.9]} 21... Ne8 {[%clk 0:01:56.4]} 22. Ne4
{[%clk 0:02:04.4]} 22... Qe7 {[%clk 0:01:54.2]} 23. Rae1 {[%clk 0:01:54.4]}
23... Nf6 {[%clk 0:01:45.9]} 24. Nc3 {[%clk 0:01:53.3]} 24... Qf7 {[%clk
0:01:40.9]} 25. Nb5 {[%clk 0:01:50.9]} 25... Ne8 {[%clk 0:01:39.5]} 26. f3
{[%clk 0:01:50.4]} 26... g5 {[%clk 0:01:36.8]} 27. Nc3 {[%clk 0:01:44.3]} 27...
Kg7 {[%clk 0:01:32.5]} 28. Ne4 {[%clk 0:01:44.2]} 28... Qe7 {[%clk 0:01:30.7]}
29. g4 {[%clk 0:01:32.9]} 29... Rf4 {[%clk 0:01:31.3]} 30. Ng3 {[%clk
0:01:33.5]} 30... Kh8 {[%clk 0:01:28.3]} 31. Qe3 {[%clk 0:01:13.9]} 31... Qf7
{[%clk 0:01:16.9]} 32. Nh5 {[%clk 0:01:00.4]} 32... Rd4 {[%clk 0:01:09.7]} 33.
Qxg5 {[%clk 0:00:56.4]} 33... Rg8 {[%clk 0:01:11]} 34. Qh4 {[%clk 0:00:56.9]}
34... Rd3 {[%clk 0:01:04.2]} 35. f4 {[%clk 0:00:54.1]} 35... Rd4 {[%clk
0:00:56.5]} 36. h3 {[%clk 0:00:44.3]} 36... Rd2+ {[%clk 0:00:40.9]} 37. Kh1
{[%clk 0:00:44.8]} 37... Qg6 {[%clk 0:00:29.1]} 38. fxe5 {[%clk 0:00:40.1]}
38... Qc2 {[%clk 0:00:28]} 39. Qg3 {[%clk 0:00:40.7]} 39... Rd3 {[%clk
0:00:08.6]} 40. Re3 {[%clk 0:00:41.7]} 40... Rd1 {[%clk 0:00:08.3]} 41. Rf3
{[%clk 0:00:43.2]} 41... Qe2 {[%clk 0:00:03.9]} 42. Rxd1 {[%clk 0:00:35.2]}
42... Qxd1+ {[%clk 0:00:05.8]} 43. Kg2 {[%clk 0:00:31.8]} 43... Qe2+ {[%clk
0:00:06.3]} 44. Rf2 {[%clk 0:00:32.5]} 44... Qe4+ {[%clk 0:00:07.6]} 45. Kh2
{[%clk 0:00:32.7]} 45... dxe5 {[%clk 0:00:08.9]} 46. Qf3 {[%clk 0:00:15.9]}
46... Qd4 {[%clk 0:00:10.2]} 47. Re2 {[%clk 0:00:16]} 47... Qa1 {[%clk
0:00:05.9]} 48. Rd2 {[%clk 0:00:11.3]} 48... Ng7 {[%clk 0:00:05]} 49. Nxg7
{[%clk 0:00:06.9]} 49... Kxg7 {[%clk 0:00:06.9]} 50. Rf2 {[%clk 0:00:07.5]}
50... Kh8 {[%clk 0:00:06.4]} 51. Qf6+ {[%clk 0:00:08]} 51... Rg7 {[%clk
0:00:07.7]} 52. Qd8+ {[%clk 0:00:08.9]} 52... Rg8 {[%clk 0:00:09.2]} 53. Rf8
{[%clk 0:00:06.4]} 53... Qb2+ {[%clk 0:00:07.6]} 54. Kg3 {[%clk 0:00:07.7]}
54... Qc3+ {[%clk 0:00:07.9]} 55. Kh4 {[%clk 0:00:08.9]} 55... Qe1+ {[%clk
0:00:06.3]} 56. Kh5 {[%clk 0:00:10.1]} 1-0

[Event "*** Titled Tuesday Blitz"]
[Site "Chess.com"]
[Date "2018.12.04"]
[Round "5"]
[White "Morshynska"]
[Black "DonPreuss"]
[Result "1-0"]
[WhiteElo "2069"]
[BlackElo "2150"]
[TimeControl "180+2"]
[EndTime "14:08:02 PST"]
[Termination "Morshynska won by resignation"]

1. d4 {[%clk 0:03:01.9]} 1... Nc6 {[%clk 0:02:59.7]} 2. d5 {[%clk 0:03:02.2]}
2... Ne5 {[%clk 0:03:00.3]} 3. e4 {[%clk 0:03:01.9]} 3... Ng6 {[%clk 0:03:01.8]}
4. Nf3 {[%clk 0:03:00.3]} 4... e5 {[%clk 0:03:03.1]} 5. h4 {[%clk 0:02:57.8]}
5... Bc5 {[%clk 0:02:59.5]} 6. h5 {[%clk 0:02:54.5]} 6... Nf8 {[%clk 0:03:00]}
7. Bd3 {[%clk 0:02:30.5]} 7... d6 {[%clk 0:03:00.5]} 8. Be3 {[%clk 0:02:12]}
8... Bb6 {[%clk 0:02:57.3]} 9. Nc3 {[%clk 0:01:55.3]} 9... Bxe3 {[%clk
0:02:48.2]} 10. fxe3 {[%clk 0:01:57.2]} 10... Nh6 {[%clk 0:02:48.8]} 11. Qd2
{[%clk 0:01:52.2]} 11... Bg4 {[%clk 0:02:47.2]} 12. O-O-O {[%clk 0:01:50.2]}
12... Nd7 {[%clk 0:02:46.9]} 13. Rdf1 {[%clk 0:01:48.7]} 13... O-O {[%clk
0:02:47.5]} 14. Nh4 {[%clk 0:01:38.8]} 14... Qg5 {[%clk 0:02:35.1]} 15. Nf5
{[%clk 0:01:31]} 15... Nf6 {[%clk 0:02:31.5]} 16. Kb1 {[%clk 0:01:12.4]} 16...
Nxh5 {[%clk 0:02:31.7]} 17. Nxh6+ {[%clk 0:01:01.9]} 17... Qxh6 {[%clk
0:02:31.2]} 18. Be2 {[%clk 0:01:00.1]} 18... Bxe2 {[%clk 0:02:17.2]} 19. Nxe2
{[%clk 0:00:54.8]} 19... Qg6 {[%clk 0:02:11]} 20. g4 {[%clk 0:00:29.1]} 20...
Nf6 {[%clk 0:02:07.9]} 21. Rxf6 {[%clk 0:00:18.9]} 21... Qxf6 {[%clk 0:02:07.9]}
22. Ng3 {[%clk 0:00:18.6]} 22... Qf3 {[%clk 0:02:01.3]} 23. Qh2 {[%clk
0:00:17.4]} 23... h6 {[%clk 0:01:55.1]} 24. g5 {[%clk 0:00:18.3]} 24... Qxe3
{[%clk 0:01:50.4]} 25. gxh6 {[%clk 0:00:17.4]} 25... Qxh6 {[%clk 0:01:51.3]} 26.
Qg2 {[%clk 0:00:18.3]} 26... Qg6 {[%clk 0:01:43.4]} 27. Nf5 {[%clk 0:00:18.2]}
27... Rae8 {[%clk 0:01:03.1]} 28. Qh3 {[%clk 0:00:17.4]} 28... f6 {[%clk
0:01:03.7]} 29. a3 {[%clk 0:00:13.3]} 29... Kf7 {[%clk 0:01:04.1]} 30. Qf1
{[%clk 0:00:12.1]} 30... Rg8 {[%clk 0:00:39.7]} 31. Rg1 {[%clk 0:00:12.3]} 31...
Qh5 {[%clk 0:00:36.7]} 32. Qb5 {[%clk 0:00:10.4]} 32... Rd8 {[%clk 0:00:30.7]}
33. Qxb7 {[%clk 0:00:10.5]} 33... g5 {[%clk 0:00:22.2]} 34. Qxc7+ {[%clk
0:00:09.8]} 34... Kg6 {[%clk 0:00:23.6]} 35. Ne7+ {[%clk 0:00:07.6]} 35... Kh6
{[%clk 0:00:24.9]} 36. Nf5+ {[%clk 0:00:06.2]} 36... Kg6 {[%clk 0:00:25.5]} 37.
Ne7+ {[%clk 0:00:06.2]} 37... Kh7 {[%clk 0:00:23.6]} 38. Nxg8+ {[%clk
0:00:04.5]} 38... Kxg8 {[%clk 0:00:23.1]} 39. Qxd8+ {[%clk 0:00:05.4]} 39... Kg7
{[%clk 0:00:25]} 40. Qe7+ {[%clk 0:00:05.6]} 40... Kg6 {[%clk 0:00:26.2]} 41.
Qxd6 {[%clk 0:00:05.5]} 41... Qh2 {[%clk 0:00:24.9]} 42. Rc1 {[%clk 0:00:05.8]}
42... g4 {[%clk 0:00:24.2]} 43. Qe6 {[%clk 0:00:05.7]} 43... g3 {[%clk 0:00:25]}
44. Qf5+ {[%clk 0:00:06.7]} 44... Kf7 {[%clk 0:00:25.3]} 45. Rf1 {[%clk
0:00:06.7]} 45... Qh4 {[%clk 0:00:22.6]} 46. d6 {[%clk 0:00:04.7]} 46... g2
{[%clk 0:00:22.6]} 47. Rg1 {[%clk 0:00:05.3]} 47... Qh1 {[%clk 0:00:21.3]} 48.
Qf2 {[%clk 0:00:05.6]} 48... Qh7 {[%clk 0:00:19.9]} 49. Qxg2 {[%clk 0:00:06.1]}
49... Ke6 {[%clk 0:00:21]} 50. Qd2 {[%clk 0:00:05.9]} 50... Kd7 {[%clk
0:00:20.3]} 51. c4 {[%clk 0:00:06]} 51... Qf7 {[%clk 0:00:19.7]} 52. Rd1 {[%clk
0:00:07.2]} 52... Kc6 {[%clk 0:00:20.8]} 53. Qd5+ {[%clk 0:00:07.6]} 53... Qxd5
{[%clk 0:00:20.7]} 54. Rxd5 {[%clk 0:00:09.5]} 54... Kd7 {[%clk 0:00:22.2]} 55.
c5 {[%clk 0:00:10.9]} 1-0

[Event "*** Titled Tuesday Blitz"]
[Site "Chess.com"]
[Date "2018.12.04"]
[Round "5"]
[White "ALeks_Ivlev"]
[Black "Godzillator"]
[Result "1-0"]
[WhiteElo "2487"]
[BlackElo "2373"]
[TimeControl "180+2"]
[EndTime "14:08:04 PST"]
[Termination "ALeks_Ivlev won by resignation"]

1. d4 {[%clk 0:02:31.1]} 1... d5 {[%clk 0:03:00.6]} 2. c4 {[%clk 0:02:32.5]}
2... c6 {[%clk 0:03:01.7]} 3. Nf3 {[%clk 0:02:33.7]} 3... Nf6 {[%clk 0:03:03.1]}
4. e3 {[%clk 0:02:35.2]} 4... Bf5 {[%clk 0:03:03.7]} 5. Nc3 {[%clk 0:02:35.7]}
5... a6 {[%clk 0:03:04.5]} 6. Bd2 {[%clk 0:02:33.5]} 6... h6 {[%clk 0:02:53.8]}
7. cxd5 {[%clk 0:02:32.6]} 7... cxd5 {[%clk 0:02:54.5]} 8. Qb3 {[%clk
0:02:33.2]} 8... Bc8 {[%clk 0:02:43]} 9. Bd3 {[%clk 0:02:32.1]} 9... e6 {[%clk
0:02:43.3]} 10. O-O {[%clk 0:02:32.5]} 10... Nc6 {[%clk 0:02:44.4]} 11. Rac1
{[%clk 0:02:32.6]} 11... Bd6 {[%clk 0:02:45.2]} 12. Na4 {[%clk 0:02:32.9]} 12...
Nd7 {[%clk 0:02:44.5]} 13. e4 {[%clk 0:02:26.8]} 13... dxe4 {[%clk 0:02:44.6]}
14. Bxe4 {[%clk 0:02:27.6]} 14... Na5 {[%clk 0:02:37.4]} 15. Qc3 {[%clk
0:02:27.7]} 15... O-O {[%clk 0:02:22.3]} 16. Qxa5 {[%clk 0:02:27.7]} 16... b6
{[%clk 0:02:13.7]} 17. Nxb6 {[%clk 0:01:53.8]} 17... Nxb6 {[%clk 0:02:13.8]} 18.
Bxa8 {[%clk 0:01:54.3]} 18... Nxa8 {[%clk 0:02:12.9]} 19. Qxd8 {[%clk
0:01:55.9]} 19... Rxd8 {[%clk 0:02:13.5]} 20. Ba5 {[%clk 0:01:57.3]} 20... Re8
{[%clk 0:02:12.7]} 21. Ne5 {[%clk 0:01:54.4]} 21... Bb7 {[%clk 0:02:13.7]} 22.
Nc4 {[%clk 0:01:36.9]} 22... Bf4 {[%clk 0:02:12.3]} 23. Rc3 {[%clk 0:01:32.4]}
23... Bd5 {[%clk 0:02:10.9]} 24. Nb6 {[%clk 0:01:31.3]} 24... Nxb6 {[%clk
0:02:03]} 25. Bxb6 {[%clk 0:01:32]} 25... Rb8 {[%clk 0:02:02.9]} 26. Bc7 {[%clk
0:01:19.2]} 26... Bxc7 {[%clk 0:01:41.1]} 27. Rxc7 {[%clk 0:01:19.3]} 27... Rxb2
{[%clk 0:01:42.7]} 28. a3 {[%clk 0:01:19.2]} 28... Rd2 {[%clk 0:01:30.3]} 29.
Rb1 {[%clk 0:01:15.5]} 29... Rxd4 {[%clk 0:01:30.1]} 30. f3 {[%clk 0:01:13.5]}
30... Ra4 {[%clk 0:01:28.2]} 31. Rb8+ {[%clk 0:01:09.8]} 31... Kh7 {[%clk
0:01:27.5]} 32. Rxf7 {[%clk 0:01:11.2]} 32... Rxa3 {[%clk 0:01:22.4]} 33. Rc8
{[%clk 0:01:10.3]} 33... Kg6 {[%clk 0:01:04.5]} 34. Rcc7 {[%clk 0:01:04.7]}
34... a5 {[%clk 0:00:56.6]} 35. Kf2 {[%clk 0:01:00.3]} 35... a4 {[%clk
0:00:54.5]} 36. Kg3 {[%clk 0:01:01]} 36... Ra2 {[%clk 0:00:51.1]} 37. h4 {[%clk
0:00:48.8]} 37... h5 {[%clk 0:00:51]} 38. Rxg7+ {[%clk 0:00:47.5]} 38... Kf6
{[%clk 0:00:52.3]} 39. Ra7 {[%clk 0:00:37.1]} 39... a3 {[%clk 0:00:51.5]} 40.
Rg5 {[%clk 0:00:35.1]} 40... Ra1 {[%clk 0:00:51.7]} 41. Rxh5 {[%clk 0:00:35.5]}
41... a2 {[%clk 0:00:53.2]} 42. Kf4 {[%clk 0:00:32.7]} 42... Kg6 {[%clk
0:00:36.4]} 43. Rg5+ {[%clk 0:00:33.1]} 43... Kh6 {[%clk 0:00:37.4]} 44. g4
{[%clk 0:00:29.7]} 44... Rf1 {[%clk 0:00:36]} 45. Rxd5 {[%clk 0:00:29.5]} 45...
exd5 {[%clk 0:00:28]} 46. Rxa2 {[%clk 0:00:30.5]} 46... Rd1 {[%clk 0:00:29.2]}
47. Ra6+ {[%clk 0:00:30.8]} 47... Kg7 {[%clk 0:00:29.6]} 48. Kg5 {[%clk
0:00:32]} 48... d4 {[%clk 0:00:30.9]} 49. f4 {[%clk 0:00:33.2]} 49... d3 {[%clk
0:00:30.7]} 50. f5 {[%clk 0:00:34.1]} 50... d2 {[%clk 0:00:31.7]} 51. Rd6 {[%clk
0:00:33.8]} 51... Kf7 {[%clk 0:00:32.2]} 52. Rd7+ {[%clk 0:00:33.3]} 52... Ke8
{[%clk 0:00:33.2]} 53. Rd3 {[%clk 0:00:34.4]} 53... Kf7 {[%clk 0:00:33.4]} 54.
h5 {[%clk 0:00:35.1]} 54... Ke7 {[%clk 0:00:33.4]} 55. h6 {[%clk 0:00:35.7]}
55... Kf7 {[%clk 0:00:34.4]} 56. f6 {[%clk 0:00:30.4]} 56... Ra1 {[%clk
0:00:25.3]} 57. Rd7+ {[%clk 0:00:30.7]} 57... Kg8 {[%clk 0:00:21.3]} 58. Rxd2
{[%clk 0:00:30.5]} 58... Kh7 {[%clk 0:00:19.6]} 59. Rd7+ {[%clk 0:00:30.1]}
59... Kh8 {[%clk 0:00:20.6]} 60. Kg6 {[%clk 0:00:30.8]} 60... Ra8 {[%clk
0:00:20.3]} 61. Rh7+ {[%clk 0:00:31.2]} 61... Kg8 {[%clk 0:00:20.7]} 62. f7+
{[%clk 0:00:33.1]} 62... Kf8 {[%clk 0:00:21.5]} 63. Rh8+ {[%clk 0:00:34.5]} 1-0